lending/lending_fUSD_20250131
["ID","MTS","AMOUNT","RATE_DAILY","PERIOD"]
[351090609,1738330263116,-668.38,0.00017123,2]
[351090610,1738330263125,-500.0,0.00017123,2]
[351090611,1738330263135,-552.78,0.00017123,2]
[351090612,1738330263144,-655.08,0.00017123,2]
[351090613,1738330263153,-853.48,0.00017123,2]
[351090614,1738330263163,-543.67,0.00017123,2]
[351090615,1738330263172,-810.58,0.00017123,2]
[351090616,1738330263182,-500.0,0.00017123,2]
[351090617,1738330263192,-553.86,0.00017123,2]
[351090618,1738330263201,-500.0,0.00017123,2]
[351090619,1738330263211,-618.0,0.00017123,2]
[351090620,1738330263220,-500.0,0.00017123,2]
[351090621,1738330263230,-611.55,0.00017123,2]
[351090622,1738330263239,-500.0,0.00017123,2]
[351090623,1738330263249,-500.0,0.00017123,2]
[351090624,1738330263259,-780.11,0.00017123,2]
[351090625,1738330263268,-1177.028054,0.00017123,2]
[351090626,1738330263278,-569.96,0.00017123,2]
[351090627,1738330263295,-667.09,0.00017123,2]
[351090628,1738330263311,-500.0,0.00017123,2]
[351090629,1738330263321,-906.03,0.00017123,2]
[351090630,1738330263332,-528.42,0.00017123,2]
[351090631,1738330263342,-500.0,0.00017123,2]
[351090632,1738330263352,-576.51,0.00017123,2]
[351090633,1738330263362,-1111.52,0.00017123,2]
[351090634,1738330263372,-1040.51,0.00017123,2]
[351090635,1738330263381,-500.0,0.00017123,2]
[351090636,1738330263390,-817.512057,0.00017123,2]
[351090637,1738330263401,-558.66,0.00017123,2]
[351090638,1738330263410,-500.0,0.00017123,2]
[351090639,1738330263420,-500.0,0.00017123,2]
[351090640,1738330263430,-749.14,0.00017123,2]
[351090641,1738330263440,-1177.09,0.00017123,2]
[351090642,1738330263451,-500.0,0.00017123,2]
[351090643,1738330263461,-617.77,0.00017123,2]
[351090644,1738330263471,-500.0,0.00017123,2]
[351090645,1738330263481,-500.0,0.00017123,2]
[351090646,1738330263491,-500.0,0.00017123,2]
[351090647,1738330263500,-896.66,0.00017123,2]
[351090648,1738330263510,-1019.41,0.00017123,2]
[351090649,1738330263519,-500.0,0.00017123,2]
[351090650,1738330263530,-787.85,0.00017123,2]
[351090651,1738330263541,-500.0,0.00017123,2]
[351090652,1738330263551,-749.64,0.00017123,2]
[351090653,1738330263560,-599.93,0.00017123,2]
[351090654,1738330263571,-595.18,0.00017123,2]
[351090655,1738330263581,-557.9,0.00017123,2]
[351090656,1738330263590,-500.0,0.00017123,2]
[351090657,1738330263600,-500.0,0.00017123,2]
[351090658,1738330263612,-658.91,0.00017123,2]
[351090659,1738330263621,-599.3,0.00017123,2]
[351090660,1738330263631,-590.44,0.00017123,2]
[351090661,1738330263641,-633.02,0.00017123,2]
[351090662,1738330263650,-500.0,0.00017123,2]
[351090663,1738330263660,-500.0,0.00017123,2]
[351090664,1738330263670,-722.92,0.00017123,2]
[351090665,1738330263680,-500.0,0.00017123,2]
[351090666,1738330263691,-1091.9,0.00017123,2]
[351090667,1738330263702,-813.36,0.00017123,2]
[351090668,1738330263712,-501.67,0.00017123,2]
[351090669,1738330263721,-1147.13,0.00017123,2]
[351090670,1738330263731,-500.0,0.00017123,2]
[351090671,1738330263741,-665.96,0.00017123,2]
[351090672,1738330263750,-500.0,0.00017123,2]
[351090673,1738330263761,-500.0,0.00017123,2]
[351090674,1738330263771,-899.19,0.00017123,2]
[351090675,1738330263781,-1174.92,0.00017123,2]
[351090676,1738330263790,-668.92,0.00017123,2]
[351090677,1738330263800,-912.48,0.00017123,2]
[351090678,1738330263809,-1476.07,0.00017123,2]
[351090679,1738330263819,-153.065871,0.00017123,2]
[351090680,1738330263828,-648.91,0.00017123,2]
[351090681,1738330263838,-650.58,0.00017123,2]
[351090682,1738330263848,-2128.17,0.00017123,2]
[351090683,1738330263857,-500.0,0.00017123,2]
[351090684,1738330263867,-689.56,0.00017123,2]
[351090685,1738330263877,-971.49,0.00017123,2]
[351090686,1738330263886,-820.44,0.00017123,2]
[351090687,1738330263896,-2443.42,0.00017123,2]
[351090688,1738330263905,-1597.55,0.00017123,2]
[351090689,1738330263915,-1387.33,0.00017123,2]
[351090690,1738330263925,-928.42,0.00017123,2]
[351090691,1738330263934,-500.0,0.00017123,2]
[351090692,1738330263945,-500.0,0.00017123,2]
[351090693,1738330263955,-2195.25,0.00017123,2]
[351090694,1738330263965,-693.9,0.00017123,2]
[351090695,1738330263975,-872.91,0.00017123,2]
[351090696,1738330263984,-10802.73,0.00017123,2]
[351090697,1738330263994,-1041.55,0.00017123,2]
[351090698,1738330264003,-616.99,0.00017123,2]
[351090699,1738330264012,-777.0,0.00017123,2]
[351090700,1738330264022,-2419.41,0.00017123,2]
[351090701,1738330264031,-1574.18,0.00017123,2]
[351090702,1738330264040,-1389.39,0.00017123,2]
[351090703,1738330264050,-1164.06,0.00017123,2]
[351090704,1738330264059,-892.74,0.00017123,2]
[351090705,1738330264069,-153.065872,0.00017123,2]
[351090706,1738330264078,-683.62,0.00017123,2]
[351090707,1738330264087,-1428.06,0.00017123,2]
[351090708,1738330264096,-1479.4,0.00017123,2]
[351090709,1738330264107,-500.0,0.00017123,2]
[351090710,1738330264116,-955.05,0.00017123,2]
[351090711,1738330264125,-788.4,0.00017123,2]
[351090712,1738330264135,-788.97,0.00017123,2]
[351090713,1738330264145,-1032.5,0.00017123,2]
[351090714,1738330264155,-1281.17,0.00017123,2]
[351090715,1738330264165,-599.37,0.00017123,2]
[351090716,1738330264175,-1774.15,0.00017123,2]
[351090717,1738330264184,-853.36,0.00017123,2]
[351090718,1738330264194,-665.64,0.00017123,2]
[351090719,1738330264204,-692.58,0.00017123,2]
[351090720,1738330264214,-4499.05,0.00017123,2]
[351090721,1738330264223,-2204.99,0.00017123,2]
[351090722,1738330264235,-500.0,0.00017123,2]
[351090723,1738330264245,-1244.32,0.00017123,2]
[351090724,1738330264254,-500.0,0.00017123,2]
[351090725,1738330264264,-2221.39,0.00017123,2]
[351090726,1738330264274,-582.68,0.00017123,2]
[351090727,1738330264283,-1029.05,0.00017123,2]
[351090728,1738330264293,-1011.4,0.00017123,2]
[351090729,1738330264303,-1376.47,0.00017123,2]
[351090730,1738330264313,-4123.97,0.00017123,2]
[351090731,1738330264323,-1294.35,0.00017123,2]
[351090732,1738330264333,-902.32,0.00017123,2]
[351090733,1738330264343,-847.74,0.00017123,2]
[351090734,1738330264353,-533.87,0.00017123,2]
[351090735,1738330264363,-2673.95,0.00017123,2]
[351090736,1738330264373,-153.065871,0.00017123,2]
[351090737,1738330264383,-3729.53,0.00017123,2]
[351090738,1738330264394,-1251.69,0.00017123,2]
[351090739,1738330264404,-500.0,0.00017123,2]
[351090740,1738330264414,-860.21,0.00017123,2]
[351090741,1738330264424,-992.97,0.00017123,2]
[351090742,1738330264434,-987.07,0.00017123,2]
[351090743,1738330264445,-756.61,0.00017123,2]
[351090744,1738330264455,-664.58,0.00017123,2]
[351090745,1738330264465,-502.19,0.00017123,2]
[351090746,1738330264475,-1951.73,0.00017123,2]
[351090747,1738330264485,-630.67,0.00017123,2]
[351090748,1738330264494,-915.53,0.00017123,2]
[351090749,1738330264504,-637.45,0.00017123,2]
[351090750,1738330264514,-500.0,0.00017123,2]
[351090751,1738330264523,-500.0,0.00017123,2]
[351090752,1738330264534,-500.0,0.00017123,2]
[351090753,1738330264547,-1177.21,0.00017123,2]
[351090754,1738330264557,-1804.68,0.00017123,2]
[351090755,1738330264567,-2725.19,0.00017123,2]
[351090756,1738330264578,-1925.39,0.00017123,2]
[351090757,1738330264588,-2309.95,0.00017123,2]
[351090758,1738330264598,-780.22,0.00017123,2]
[351090759,1738330264609,-1862.18,0.00017123,2]
[351090760,1738330264619,-977.44,0.00017123,2]
[351090761,1738330264629,-1774.6,0.00017123,2]
[351090762,1738330264638,-991.11,0.00017123,2]
[351090763,1738330264648,-1285.72,0.00017123,2]
[351090764,1738330264657,-500.0,0.00017123,2]
[351090765,1738330264668,-1845.86,0.00017123,2]
[351090766,1738330264678,-1005.39647684,0.00017123,5]
[351090767,1738330264687,-500.0,0.00017123,2]
[351090768,1738330264698,-1408.31,0.00017123,2]
[351090769,1738330264708,-1126.86,0.00017123,2]
[351090770,1738330264717,-1863.64,0.00017123,2]
[351090771,1738330264727,-2837.3,0.00017123,2]
[351090772,1738330264737,-3575.8,0.00017123,2]
[351090773,1738330264747,-980.91,0.00017123,2]
[351090774,1738330264767,-2345.02,0.00017123,2]
[351090775,1738330264778,-710.22,0.00017123,2]
[351090776,1738330264789,-3520.76,0.00017123,2]
[351090777,1738330264799,-6700.13,0.00017123,2]
[351090778,1738330264809,-547.17,0.00017123,2]
[351090779,1738330264819,-500.0,0.00017123,2]
[351090780,1738330264829,-1788.65,0.00017123,2]
[351090781,1738330264839,-500.0,0.00017123,2]
[351090782,1738330264848,-2184.0,0.00017123,2]
[351090783,1738330264859,-1475.22,0.00017123,2]
[351090784,1738330264869,-1421.48,0.00017123,2]
[351090785,1738330264879,-1714.53,0.00017123,2]
[351090786,1738330264889,-5708.97,0.00017123,2]
[351090787,1738330264900,-970.99,0.00017123,2]
[351090788,1738330264910,-1202.06,0.00017123,2]
[351090789,1738330264919,-706.33,0.00017123,2]
[351090790,1738330264930,-560.35,0.00017123,2]
[351090791,1738330265038,-500.0,0.00017123,2]
[351090792,1738330265048,-721.8,0.00017123,2]
[351090793,1738330265057,-3593.68,0.00017123,2]
[351090794,1738330265067,-3176.65,0.00017123,2]
[351090795,1738330265076,-1388.69,0.00017123,2]
[351090796,1738330265086,-6333.8,0.00017123,2]
[351090797,1738330265095,-3896.66,0.00017123,2]
[351090798,1738330265104,-4983.19,0.00017123,2]
[351090799,1738330265113,-806.85,0.00017123,2]
[351090800,1738330265122,-2323.16,0.00017123,2]
[351090801,1738330265131,-500.0,0.00017123,2]
[351090802,1738330265140,-3058.4,0.00017123,2]
[351090803,1738330265150,-5624.37,0.00017123,2]
[351090804,1738330265161,-1642.11,0.00017123,2]
[351090805,1738330265171,-3233.65,0.00017123,2]
[351090806,1738330265180,-2404.98,0.00017123,2]
[351090807,1738330265191,-500.0,0.00017123,2]
[351090808,1738330265201,-1835.72,0.00017123,2]
[351090809,1738330265210,-1960.06,0.00017123,2]
[351090810,1738330265220,-500.0,0.00017123,2]
[351090811,1738330265229,-5138.96,0.00017123,2]
[351090812,1738330265239,-1039.18,0.00017123,2]
[351090813,1738330265248,-930.69,0.00017123,2]
[351090814,1738330265257,-6256.88,0.00017123,2]
[351090815,1738330265267,-2029.44,0.00017123,2]
[351090816,1738330265276,-533.32,0.00017123,2]
[351090817,1738330265285,-500.0,0.00017123,2]
[351090818,1738330265295,-500.0,0.00017123,2]
[351090819,1738330265306,-5102.8,0.00017123,2]
[351090820,1738330265317,-2497.8,0.00017123,2]
[351090821,1738330265327,-500.0,0.00017123,2]
[351090822,1738330265337,-500.0,0.00017123,2]
[351090823,1738330265347,-787.65,0.00017123,2]
[351090824,1738330265356,-6171.09,0.00017123,2]
[351090825,1738330265365,-509.52,0.00017123,2]
[351090826,1738330265375,-2405.42,0.00017123,2]
[351090827,1738330265384,-547.19,0.00017123,2]
[351090828,1738330265394,-825.38,0.00017123,2]
[351090829,1738330265403,-500.0,0.00017123,2]
[351090830,1738330265413,-1388.58,0.00017123,2]
[351090831,1738330265423,-1907.72,0.00017123,2]
[351090832,1738330265432,-500.0,0.00017123,2]
[351090833,1738330265443,-647.17,0.00017123,2]
[351090834,1738330265453,-500.0,0.00017123,2]
[351090835,1738330265463,-1179.41,0.00017123,2]
[351090836,1738330265472,-1165.58,0.00017123,2]
[351090837,1738330265482,-4786.8061847,0.00017129,2]
[351090838,1738330265492,-20000.0,0.0001714,2]
[351090839,1738330265501,-4241.85,0.000172,2]
[351090840,1738330265510,-162.16197459,0.00017251,2]
[351090841,1738330265520,-500.0,0.00017259,2]
[351090842,1738330265529,-500.0,0.00017259,2]
[351090843,1738330265542,-500.0,0.00017259,2]
[351090844,1738330265551,-500.0,0.00017259,2]
[351090845,1738330265560,-500.0,0.00017259,2]
[351090846,1738330265569,-500.0,0.00017259,2]
[351090847,1738330265580,-500.0,0.00017259,2]
[351090848,1738330265590,-500.0,0.00017259,2]
[351090849,1738330265599,-500.0,0.00017259,2]
[351090850,1738330265608,-500.0,0.00017259,2]
[351090851,1738330265618,-647.45,0.00017259,2]
[351090852,1738330265628,-500.0,0.00017259,2]
[351090853,1738330265637,-537.88430528,0.00017259,2]
[351090854,1738330265646,-500.0,0.00017259,2]
[351090855,1738330265656,-500.0,0.00017259,2]
[351090856,1738330265666,-533.58,0.00017259,2]
[351090857,1738330265675,-500.0,0.00017259,2]
[351090858,1738330265684,-500.0,0.00017259,2]
[351090859,1738330265695,-184.97515837,0.00017259,2]
[351090860,1738330265704,-921.76,0.00017259,2]
[351090861,1738330265713,-500.0,0.00017259,2]
[351090862,1738330265722,-554.28,0.00017259,2]
[351090863,1738330265731,-500.0,0.00017259,2]
[351090864,1738330265740,-500.0,0.00017259,2]
[351090865,1738330265751,-471.98532328,0.00017259,2]
[351090866,1738330265761,-535.26,0.00017259,2]
[351090867,1738330265771,-500.0,0.00017259,2]
[351090868,1738330265779,-500.0,0.00017259,2]
[351090869,1738330265790,-500.0,0.00017259,2]
[351090870,1738330265799,-500.0,0.00017259,2]
[351090871,1738330265808,-548.31,0.00017259,2]
[351090872,1738330265817,-500.0,0.00017259,2]
[351090873,1738330265826,-500.0,0.00017259,2]
[351090874,1738330265835,-504.97,0.00017259,2]
[351090875,1738330265845,-500.0,0.00017259,2]
[351090876,1738330265854,-500.0,0.00017259,2]
[351090877,1738330265864,-500.0,0.00017259,2]
[351090878,1738330265873,-500.0,0.00017259,2]
[351090879,1738330265882,-500.0,0.00017259,2]
[351090880,1738330265893,-500.0,0.00017259,2]
[351090881,1738330265902,-672.19,0.00017259,2]
[351090882,1738330265912,-500.0,0.00017259,2]
[351090883,1738330265923,-500.0,0.00017259,2]
[351090884,1738330265932,-500.0,0.00017259,2]
[351090885,1738330265942,-718.71,0.00017259,2]
[351090886,1738330265951,-500.0,0.00017259,2]
[351090887,1738330265961,-500.0,0.00017259,2]
[351090888,1738330265970,-500.0,0.00017259,2]
[351090889,1738330265980,-500.0,0.00017259,2]
[351090890,1738330265989,-500.0,0.00017259,2]
[351090891,1738330265998,-500.0,0.00017259,2]
[351090892,1738330266007,-3437.57,0.00017259,2]
[351090893,1738330266016,-527.97,0.00017259,2]
[351090894,1738330266026,-1958.17,0.00017259,2]
[351090895,1738330266036,-500.0,0.00017259,2]
[351090896,1738330266045,-1086.27,0.00017259,2]
[351090897,1738330266054,-500.0,0.00017259,2]
[351090898,1738330266064,-500.0,0.00017259,2]
[351090899,1738330266073,-508.42,0.00017259,2]
[351090900,1738330266083,-500.0,0.00017259,2]
[351090901,1738330266093,-2213.4,0.00017259,2]
[351090902,1738330266102,-500.0,0.00017259,2]
[351090903,1738330266112,-750.16,0.00017259,2]
[351090904,1738330266121,-1214.4,0.00017259,2]
[351090905,1738330266131,-1648.29,0.00017259,2]
[351090906,1738330266140,-535.09,0.00017259,2]
[351090907,1738330266149,-1054.03,0.00017259,2]
[351090908,1738330266159,-1696.88,0.00017259,2]
[351090909,1738330266168,-500.0,0.00017259,2]
[351090910,1738330266177,-913.79,0.00017259,2]
[351090911,1738330266186,-798.88,0.00017259,2]
[351090912,1738330266196,-500.0,0.00017259,2]
[351090913,1738330266205,-887.86,0.00017259,2]
[351090914,1738330266215,-1548.0,0.00017259,2]
[351090915,1738330266224,-500.0,0.00017259,2]
[351090916,1738330266233,-777.96,0.00017259,2]
[351090917,1738330266243,-1988.47,0.00017259,2]
[351090918,1738330266252,-500.0,0.00017259,2]
[351090919,1738330266261,-500.0,0.00017259,2]
[351090920,1738330266270,-2656.93,0.00017259,2]
[351090921,1738330266279,-500.0,0.00017259,2]
[351090922,1738330266288,-2337.51,0.00017259,2]
[351090923,1738330266298,-4645.5,0.00017259,2]
[351090924,1738330266307,-500.0,0.00017259,2]
[351090925,1738330266317,-10518.3,0.00017259,2]
[351090926,1738330266326,-500.0,0.00017259,2]
[351090927,1738330266336,-500.0,0.00017259,2]
[351090928,1738330266345,-500.0,0.00017259,2]
[351090929,1738330266355,-1506.86,0.00017259,2]
[351090930,1738330266364,-878.68,0.00017259,2]
[351090931,1738330266374,-946.4,0.0001726,2]
[351090932,1738330266383,-500.0,0.0001726,2]
[351090933,1738330266393,-585.38,0.0001726,2]
[351090934,1738330266402,-501.6,0.0001726,2]
[351090935,1738330266412,-500.0,0.0001726,2]
[351090936,1738330266421,-500.0,0.0001726,2]
[351090937,1738330266430,-500.0,0.0001726,2]
[351090938,1738330266439,-500.0,0.0001726,2]
[351090939,1738330266449,-500.0,0.0001726,2]
[351090940,1738330266459,-500.0,0.0001726,2]
[351090941,1738330266468,-1050.63,0.0001726,2]
[351090942,1738330266478,-2526.07,0.0001726,2]
[351090943,1738330266487,-500.0,0.0001726,2]
[351090944,1738330266496,-500.0,0.0001726,2]
[351090945,1738330266506,-708.56,0.0001726,2]
[351090946,1738330266515,-500.0,0.0001726,2]
[351090947,1738330266525,-928.97,0.0001726,2]
[351090948,1738330266539,-500.0,0.0001726,2]
[351090949,1738330266548,-1010.68,0.0001726,2]
[351090950,1738330266558,-660.51,0.0001726,2]
[351090951,1738330266568,-764.61,0.0001726,2]
[351090952,1738330266578,-189.12251611,0.0001726,2]
[351090953,1738330266587,-823.51,0.0001726,2]
[351090954,1738330266596,-596.38,0.0001726,2]
[351090955,1738330266606,-500.0,0.0001726,2]
[351090956,1738330266616,-1181.6,0.0001726,2]
[351090957,1738330266626,-500.0,0.0001726,2]
[351090958,1738330266635,-1755.36,0.0001726,2]
[351090959,1738330266644,-774.61,0.0001726,2]
[351090960,1738330266653,-691.43,0.0001726,2]
[351090961,1738330266663,-945.59,0.0001726,2]
[351090962,1738330266672,-500.0,0.0001726,2]
[351090963,1738330266681,-678.94,0.0001726,2]
[351090964,1738330266691,-500.0,0.0001726,2]
[351090965,1738330266700,-502.29,0.0001726,2]
[351090966,1738330266710,-1393.13,0.0001726,2]
[351090967,1738330266720,-1153.02,0.0001726,2]
[351090968,1738330266729,-684.77,0.0001726,2]
[351090969,1738330266738,-796.76,0.0001726,2]
[351090970,1738330266747,-732.31,0.0001726,2]
[351090971,1738330266756,-500.0,0.0001726,2]
[351090972,1738330266765,-500.0,0.0001726,2]
[351090973,1738330266774,-768.25,0.0001726,2]
[351090974,1738330266784,-1222.29,0.0001726,2]
[351090975,1738330266794,-500.0,0.0001726,2]
[351090976,1738330266804,-1062.2,0.0001726,2]
[351090977,1738330266813,-500.0,0.0001726,2]
[351090978,1738330266822,-649.99,0.0001726,2]
[351090979,1738330266830,-672.57,0.0001726,2]
[351090980,1738330266839,-707.49,0.0001726,2]
[351090981,1738330266848,-668.38,0.0001726,2]
[351090982,1738330266857,-500.0,0.0001726,2]
[351090983,1738330266866,-552.78,0.0001726,2]
[351090984,1738330266875,-655.08,0.0001726,2]
[351090985,1738330266885,-853.48,0.0001726,2]
[351090986,1738330266894,-543.67,0.0001726,2]
[351090987,1738330266903,-810.58,0.0001726,2]
[351090988,1738330266913,-500.0,0.0001726,2]
[351090989,1738330266923,-553.86,0.0001726,2]
[351090990,1738330266932,-500.0,0.0001726,2]
[351090991,1738330266943,-500.0,0.0001726,2]
[351090992,1738330266953,-618.0,0.0001726,2]
[351090993,1738330266962,-611.55,0.0001726,2]
[351090994,1738330266971,-500.0,0.0001726,2]
[351090995,1738330266980,-500.0,0.0001726,2]
[351090996,1738330266989,-780.11,0.0001726,2]
[351090997,1738330266999,-1177.028054,0.0001726,2]
[351090998,1738330267009,-569.96,0.0001726,2]
[351090999,1738330267018,-667.09,0.0001726,2]
[351091000,1738330267029,-500.0,0.0001726,2]
[351091001,1738330267038,-906.03,0.0001726,2]
[351091002,1738330267047,-528.42,0.0001726,2]
[351091003,1738330267057,-500.0,0.0001726,2]
[351091004,1738330267066,-576.51,0.0001726,2]
[351091005,1738330267075,-1111.52,0.0001726,2]
[351091006,1738330267085,-1040.51,0.0001726,2]
[351091007,1738330267094,-500.0,0.0001726,2]
[351091008,1738330267103,-817.512057,0.0001726,2]
[351091009,1738330267112,-558.66,0.0001726,2]
[351091010,1738330267121,-500.0,0.0001726,2]
[351091011,1738330267130,-749.14,0.0001726,2]
[351091012,1738330267139,-1177.09,0.0001726,2]
[351091013,1738330267148,-500.0,0.0001726,2]
[351091014,1738330267158,-500.0,0.0001726,2]
[351091015,1738330267167,-617.77,0.0001726,2]
[351091016,1738330267176,-500.0,0.0001726,2]
[351091017,1738330267185,-500.0,0.0001726,2]
[351091018,1738330267195,-500.0,0.0001726,2]
[351091019,1738330267204,-896.66,0.0001726,2]
[351091020,1738330267213,-1019.41,0.0001726,2]
[351091021,1738330267222,-500.0,0.0001726,2]
[351091022,1738330267232,-787.85,0.0001726,2]
[351091023,1738330267241,-500.0,0.0001726,2]
[351091024,1738330267250,-749.64,0.0001726,2]
[351091025,1738330267259,-599.93,0.0001726,2]
[351091026,1738330267268,-595.18,0.0001726,2]
[351091027,1738330267277,-557.9,0.0001726,2]
[351091028,1738330267287,-500.0,0.0001726,2]
[351091029,1738330267296,-500.0,0.0001726,2]
[351091030,1738330267305,-658.91,0.0001726,2]
[351091031,1738330267314,-599.3,0.0001726,2]
[351091032,1738330267323,-590.44,0.0001726,2]
[351091033,1738330267332,-633.02,0.0001726,2]
[351091034,1738330267341,-500.0,0.0001726,2]
[351091035,1738330267350,-500.0,0.0001726,2]
[351091036,1738330267360,-722.92,0.0001726,2]
[351091037,1738330267369,-500.0,0.0001726,2]
[351091038,1738330267378,-1091.9,0.0001726,2]
[351091039,1738330267388,-813.36,0.0001726,2]
[351091040,1738330267397,-501.67,0.0001726,2]
[351091041,1738330267406,-1147.13,0.0001726,2]
[351091042,1738330267415,-500.0,0.0001726,2]
[351091043,1738330267424,-665.96,0.0001726,2]
[351091044,1738330267434,-500.0,0.0001726,2]
[351091045,1738330267443,-500.0,0.0001726,2]
[351091046,1738330267452,-899.19,0.0001726,2]
[351091047,1738330267461,-1174.92,0.0001726,2]
[351091048,1738330267471,-668.92,0.0001726,2]
[351091049,1738330267480,-912.48,0.0001726,2]
[351091050,1738330267490,-1476.07,0.0001726,2]
[351091051,1738330267500,-648.91,0.0001726,2]
[351091052,1738330267510,-650.58,0.0001726,2]
[351091053,1738330267520,-2128.17,0.0001726,2]
[351091054,1738330267530,-500.0,0.0001726,2]
[351091055,1738330267541,-689.56,0.0001726,2]
[351091056,1738330267550,-971.49,0.0001726,2]
[351091057,1738330267560,-820.44,0.0001726,2]
[351091058,1738330267570,-2443.42,0.0001726,2]
[351091059,1738330267581,-1597.55,0.0001726,2]
[351091060,1738330267590,-1387.33,0.0001726,2]
[351091061,1738330267599,-928.42,0.0001726,2]
[351091062,1738330267608,-500.0,0.0001726,2]
[351091063,1738330267623,-500.0,0.0001726,2]
[351091064,1738330267633,-2195.25,0.0001726,2]
[351091065,1738330267643,-693.9,0.0001726,2]
[351091066,1738330267652,-872.91,0.0001726,2]
[351091067,1738330267661,-10802.73,0.0001726,2]
[351091068,1738330267670,-1041.55,0.0001726,2]
[351091069,1738330267680,-159.506153,0.0001726,2]
[351091070,1738330267692,-616.99,0.0001726,2]
[351091071,1738330267701,-777.0,0.0001726,2]
[351091072,1738330267710,-2419.41,0.0001726,2]
[351091073,1738330267719,-1574.18,0.0001726,2]
[351091074,1738330267729,-1389.39,0.0001726,2]
[351091075,1738330267739,-1164.06,0.0001726,2]
[351091076,1738330267749,-892.74,0.0001726,2]
[351091077,1738330267759,-683.62,0.0001726,2]
[351091078,1738330267768,-1428.06,0.0001726,2]
[351091079,1738330267778,-1479.4,0.0001726,2]
[351091080,1738330267788,-500.0,0.0001726,2]
[351091081,1738330267798,-955.05,0.0001726,2]
[351091082,1738330267808,-788.97,0.0001726,2]
[351091083,1738330267819,-1032.5,0.0001726,2]
[351091084,1738330267828,-788.4,0.0001726,2]
[351091085,1738330267837,-1281.17,0.0001726,2]
[351091086,1738330267846,-599.37,0.0001726,2]
[351091087,1738330267856,-1774.15,0.0001726,2]
[351091088,1738330267865,-853.36,0.0001726,2]
[351091089,1738330267875,-665.64,0.0001726,2]
[351091090,1738330267884,-692.58,0.0001726,2]
[351091091,1738330267893,-4499.05,0.0001726,2]
[351091092,1738330267903,-2204.99,0.0001726,2]
[351091093,1738330267913,-500.0,0.0001726,2]
[351091094,1738330267923,-1244.32,0.0001726,2]
[351091095,1738330267932,-500.0,0.0001726,2]
[351091096,1738330267942,-2221.39,0.0001726,2]
[351091097,1738330267954,-582.68,0.0001726,2]
[351091098,1738330267963,-1029.05,0.0001726,2]
[351091099,1738330267973,-1011.4,0.0001726,2]
[351091100,1738330267982,-1376.47,0.0001726,2]
[351091101,1738330267991,-4123.97,0.0001726,2]
[351091102,1738330268001,-1294.35,0.0001726,2]
[351091103,1738330268010,-902.32,0.0001726,2]
[351091104,1738330268020,-847.74,0.0001726,2]
[351091105,1738330268030,-533.87,0.0001726,2]
[351091106,1738330268039,-2673.95,0.0001726,2]
[351091107,1738330268049,-3729.53,0.0001726,2]
[351091108,1738330268058,-1251.69,0.0001726,2]